bitfinex-derivatives/quotes_BNBF0:USTF0_20250316
["timestamp","ask_amount","ask_price","bid_price","bid_amount"]
[1742132380272,1.03290613,602.58,601.58,1.38199997]
[1742132380568,1.03290613,602.58,601.59,2.20107646]
[1742132380773,1.03290613,602.58,601.6,1.01468101]
[1742132381370,1.03290613,602.58,601.61,1.55381291]
[1742132381574,1.03290613,602.58,601.62,1.01468101]
[1742132382074,1.03290613,602.58,601.63,1.18639545]
[1742132382275,1.03290613,602.58,601.64,1.01468101]
[1742132382673,1.03290613,602.58,601.65,1.18639545]
[1742132382867,1.03290613,602.58,601.66,1.01468101]
[1742132383470,1.03290613,602.58,601.4,0.863]
[1742132383670,1.03290613,602.58,601.41,2.88053171]
[1742132383874,1.03290613,602.58,601.42,1.68979969]
[1742132384071,1.03290613,602.58,601.43,1.68979969]
[1742132384382,1.03290613,602.58,601.44,1.68979969]
[1742132384576,1.03290613,602.58,601.45,1.68979969]
[1742132384772,1.03290613,602.58,601.46,2.88053171]
[1742132384974,1.03290613,602.58,601.47,2.88053171]
[1742132385175,1.03290613,602.58,601.48,1.38450421]
[1742132385377,1.03290613,602.58,601.49,1.38450421]
[1742132385580,1.03290613,602.58,601.5,2.57531183]
[1742132385877,1.03290613,602.58,601.51,1.38457981]
[1742132386078,1.03290613,602.58,601.52,1.38457981]
[1742132386276,1.03290613,602.58,601.53,1.38457981]
[1742132386476,1.03290613,602.58,601.54,1.38457981]
[1742132386674,1.03290613,602.58,601.52,1.19073202]
[1742132386675,1.03290613,602.58,601.55,1.38457981]
[1742132386875,1.03290613,602.58,601.56,1.38457981]
[1742132387079,1.03290613,602.58,601.57,1.38457981]
[1742132387276,1.03290613,602.58,601.58,1.38457981]
[1742132387478,1.03290613,602.58,601.59,1.38457981]
[1742132387778,1.03290613,602.58,601.6,1.38457981]
[1742132387979,1.03290613,602.58,601.61,1.38457981]
[1742132388176,1.03290613,602.58,601.62,1.38457981]
[1742132388373,1.03290613,602.58,601.63,1.38457981]
[1742132388577,1.03290613,602.58,601.64,1.38457981]
[1742132388775,1.03290613,602.58,601.65,1.38480317]
[1742132388979,1.03290613,602.58,601.66,1.38480317]
[1742132389179,1.03290613,602.58,601.67,1.38480317]
[1742132389474,1.03290613,602.58,601.68,1.38480317]
[1742132389672,1.03290613,602.58,601.69,1.38480317]
[1742132389875,1.03290613,602.58,601.7,1.01690655]
[1742132390077,1.03290613,602.58,601.71,1.01690655]
[1742132390278,1.03290613,602.58,601.72,1.01690655]
[1742132391474,1.03290613,602.58,601.73,1.19073202]
[1742132391881,1.03290613,602.58,601.41,1.19073202]
[1742132392075,1.03290613,602.58,601.42,1.39036358]
[1742132392272,1.03290613,602.58,601.43,1.39036358]
[1742132392478,1.03290613,602.58,601.44,2.5812311]
[1742132392674,1.03290613,602.58,601.45,1.39049908]
[1742132392874,1.03290613,602.58,601.46,1.39049908]
[1742132393078,1.03290613,602.58,601.47,1.39049908]
[1742132393280,1.03290613,602.58,601.48,1.39049908]
[1742132393481,1.03290613,602.58,601.49,1.39049908]
[1742132393781,1.03290613,602.58,601.5,1.39125011]
[1742132393981,1.03290613,602.58,601.51,2.58198213]
[1742132394281,1.03290613,602.58,601.52,1.39125011]
[1742132394481,1.03290613,602.58,601.53,1.39125011]
[1742132394674,1.03290613,602.58,601.54,1.39125011]
[1742132394881,1.03290613,602.58,601.55,1.39125011]
[1742132395075,1.03290613,602.58,601.56,1.39125011]
[1742132395276,1.03290613,602.58,601.57,1.39125011]
[1742132395477,1.03290613,602.58,601.58,1.39125011]
[1742132395675,1.03290613,602.58,601.59,1.39125011]
[1742132395976,1.03290613,602.58,601.6,1.39125011]
[1742132396181,1.03290613,602.58,601.61,1.39125011]
[1742132396379,1.03290613,602.58,601.62,1.39125011]
[1742132396582,1.03290613,602.58,601.63,1.39125011]
[1742132396878,1.03290613,602.58,601.64,1.39125011]
[1742132397082,1.03290613,602.58,601.65,1.39125011]
[1742132397381,1.03290613,602.58,601.66,1.39125011]
[1742132397577,1.03290613,602.58,601.67,1.39125011]
[1742132397778,1.03290613,602.58,601.68,0.36914966]
[1742132397976,1.03290613,602.58,601.69,1.39103067]
[1742132398181,1.03290613,602.58,601.7,1.02188101]
[1742132398383,1.03290613,602.58,601.71,2.21261303]
[1742132398581,1.03290613,602.58,601.72,1.02188101]
[1742132398779,1.03290613,602.58,601.73,1.02188101]
[1742132398982,1.03290613,602.58,601.74,1.19073202]
[1742132399390,1.03290613,602.58,601.75,1.39071022]
[1742132399581,1.03290613,602.58,601.76,1.39071022]
[1742132399882,1.03290613,602.58,601.77,1.39049242]
[1742132400076,1.03290613,602.58,601.78,1.39049242]
[1742132400279,1.03290613,602.58,601.79,1.39049242]
[1742132400480,1.03290613,602.58,601.8,1.39049242]
[1742132400682,1.03290613,602.58,601.81,1.39049242]
[1742132400878,1.03290613,602.58,601.82,1.39049242]
[1742132401075,1.03290613,602.58,601.83,1.02130543]
[1742132401281,1.03290613,602.58,601.81,1.19073202]
[1742132404087,1.03290613,602.58,601.81,2.28173202]
[1742132405590,1.03290613,602.58,601.81,1.091]
[1742132429817,2.5233244,602.55,601.81,1.091]
[1742132430416,0.33192817,602.54,601.81,1.091]
[1742132433121,0.702,602.53,601.81,1.091]
[1742132433722,0.28929244,602.52,601.81,1.091]
[1742132436019,0.33194469,602.51,601.81,1.091]
[1742132436921,0.28931529,602.5,601.81,1.091]
[1742132438124,2.5233244,602.46,601.81,1.091]
[1742132439121,0.33197775,602.45,601.81,1.091]
[1742132440024,0.28933453,602.44,601.81,1.091]
[1742132445629,0.33198877,602.43,601.81,1.091]
[1742132445824,0.62130526,602.43,601.81,1.091]
[1742132448430,0.33199428,602.42,601.81,1.091]
[1742132448930,0.28933573,602.41,601.81,1.091]
[1742132450732,0.33200531,602.4,601.81,1.091]
[1742132455836,2.5233244,602.33,601.81,1.091]
[1742132456438,0.3320494,602.32,600.58,0.28926238]
[1742132456733,0.3320494,602.32,600.59,3.19431339]
[1742132456938,0.3320494,602.32,600.6,2.01263284]
[1742132457138,0.3320494,602.32,600.61,2.55571059]
[1742132457338,0.3320494,602.32,600.62,1.6802726]
[1742132457539,0.3320494,602.32,600.63,1.6802726]
[1742132457737,0.3320494,602.32,600.64,1.6802726]
[1742132457934,2.5233244,602.29,600.65,1.48727194]
[1742132458137,0.33207697,602.27,600.66,0.30559693]
[1742132458741,0.33207697,602.27,600.67,1.18167501]
[1742132458941,0.33207697,602.27,600.68,0.30559693]
[1742132459344,2.5233244,602.19,600.69,1.18167501]
[1742132459538,0.33213212,602.17,600.7,0.30559693]
[1742132459943,0.33213212,602.17,600.71,0.30559693]
[1742132460242,0.33213212,602.17,600.72,0.30559693]
[1742132460444,0.33213212,602.17,600.68,0.30559693]
[1742132460740,0.33213212,602.17,600.69,0.30565916]
[1742132460944,2.5233244,602.15,600.68,0.30565916]
[1742132461342,0.33215418,602.13,600.69,1.18430339]
[1742132461542,0.33215418,602.13,600.7,0.30565916]
[1742132462137,0.33215418,602.13,600.68,0.30565916]
[1742132462343,0.33215418,602.13,600.69,0.30565916]
[1742132462544,0.33215418,602.13,600.67,1.004]
[1742132462739,0.33215418,602.13,600.68,0.30566645]
[1742132463545,0.33215418,602.13,600.69,1.37790944]
[1742132463744,0.33215418,602.13,600.7,1.68357589]
[1742132463947,0.33215418,602.13,600.71,1.68357589]
[1742132464148,0.33215418,602.13,600.72,1.68357589]
[1742132464343,0.33215418,602.13,600.73,1.3780694]
[1742132464548,0.33215418,602.13,600.74,1.01186225]
[1742132464945,0.33215418,602.13,600.73,1.18542863]
[1742132465546,0.33215418,602.13,600.74,1.01249787]
[1742132466251,0.33215418,602.13,600.75,1.01244154]
[1742132466450,0.33215418,602.13,600.73,1.18542863]
[1742132466845,0.33215418,602.13,600.74,1.01294343]
[1742132467050,0.33215418,602.13,600.75,1.18542863]
[1742132467552,0.33215418,602.13,600.76,1.01320016]
[1742132467753,0.33215418,602.13,600.77,1.18542863]
[1742132468354,0.33215418,602.13,600.78,1.01356385]
[1742132468554,0.33215418,602.13,600.68,1.18542863]
[1742132468750,0.33215418,602.13,600.69,1.68592126]
[1742132468954,0.33215418,602.13,600.79,1.18542863]
[1742132469951,0.33215418,602.13,600.68,1.18542863]
[1742132470154,0.33215418,602.13,600.69,1.68667802]
[1742132470357,0.33215418,602.13,600.7,1.68667802]
[1742132470558,0.33215418,602.13,600.71,1.31982338]
[1742132470852,0.33215418,602.13,600.72,1.18542863]
[1742132471255,0.33215418,602.13,600.67,1.004]
[1742132471256,0.33215418,602.13,600.68,1.18542863]
[1742132471457,0.33215418,602.13,600.69,1.01551468]
[1742132471755,0.33215418,602.13,600.7,1.01550043]
[1742132471957,0.33215418,602.13,600.7,1.18542863]
[1742132472862,0.33215418,602.13,600.68,1.18542863]
[1742132473558,0.33215418,602.13,600.67,1.004]
[1742132475361,2.5233244,601.91,600.67,1.004]
[1742132476057,0.33228663,601.89,600.67,1.004]
[1742132482567,0.33228663,601.89,600.68,1.02053003]
[1742132482766,0.33228663,601.89,600.69,2.88993001]
[1742132482962,0.33228663,601.89,600.7,1.69476164]
[1742132483166,0.33228663,601.89,600.71,2.88942088]
[1742132483367,0.33228663,601.89,600.72,1.32570196]
[1742132483566,0.33228663,601.89,600.73,1.01995563]
[1742132483767,0.33228663,601.89,600.74,1.01995563]
[1742132483965,0.33228663,601.89,600.75,2.2145496]
[1742132484165,0.33228663,601.89,600.76,1.01995563]
[1742132484364,0.33228663,601.89,600.77,1.19459397]
[1742132484560,0.33228663,601.89,600.78,1.01995563]
[1742132485268,0.33228663,601.89,600.79,1.19459397]
[1742132485467,0.703,601.88,600.79,1.19459397]
[1742132485668,0.33230319,601.86,600.79,1.19459397]
[1742132486164,0.33230319,601.86,600.68,1.19459397]
[1742132486364,0.33230319,601.86,600.69,1.69604214]
[1742132486569,0.33230319,601.86,600.7,1.39033262]
[1742132486762,0.33230319,601.86,600.71,1.39033262]
[1742132486966,0.33230319,601.86,600.72,2.5849364]
[1742132487162,0.33230319,601.86,600.73,1.39034243]
[1742132487367,0.33230319,601.86,600.74,1.02096451]
[1742132487564,0.33230319,601.86,600.75,1.02096451]
[1742132488164,0.33230319,601.86,600.76,1.19459397]
[1742132488368,0.33230319,601.86,600.77,1.02096451]
[1742132488972,0.33230319,601.86,600.78,1.19459397]
[1742132490573,0.33230319,601.86,600.79,1.02116367]
[1742132490873,0.33230319,601.86,600.8,1.02113393]
[1742132491072,0.33230319,601.86,600.81,1.39036618]
[1742132491276,0.33230319,601.86,600.82,1.39036618]
[1742132491466,0.33230319,601.86,600.83,1.39036618]
[1742132491772,0.33230319,601.86,600.84,1.39036618]
[1742132491971,0.33230319,601.86,600.85,1.02113393]
[1742132492166,0.33230319,601.86,600.86,1.02113393]
[1742132492371,0.33230319,601.86,600.87,2.2157279]
[1742132492665,0.33230319,601.86,600.88,1.02113393]
[1742132492864,0.33230319,601.86,600.89,1.02113393]
[1742132493064,0.33230319,601.86,600.87,1.19459397]
[1742132493270,0.33230319,601.86,600.88,1.0206459]
[1742132493572,0.33230319,601.86,600.89,1.0206459]
[1742132493767,0.33230319,601.86,600.78,1.19459397]
[1742132494073,0.33230319,601.86,600.79,1.3898295]
[1742132494372,0.33230319,601.86,600.8,1.3898295]
[1742132494573,0.33230319,601.86,600.81,1.3898295]
[1742132494774,0.33230319,601.86,600.82,2.58442347]
[1742132494977,0.33230319,601.86,600.83,1.3898295]
[1742132495177,0.33230319,601.86,600.84,1.38979474]
[1742132495377,0.33230319,601.86,600.85,1.38979474]
[1742132495574,0.33230319,601.86,600.86,2.58438871]
[1742132495772,0.33230319,601.86,600.87,1.38979474]
[1742132495975,0.33230319,601.86,600.88,1.02063723]
[1742132496177,0.33230319,601.86,600.89,1.02063723]
[1742132496377,0.33230319,601.86,600.9,1.02063723]
[1742132496579,0.33230319,601.86,600.91,1.02063723]
[1742132496879,0.33230319,601.86,600.92,1.19459397]
[1742132497074,0.33230319,601.86,600.93,1.02025718]
[1742132497275,0.33230319,601.86,600.94,1.38916077]
[1742132497475,0.33230319,601.86,600.95,2.58371993]
[1742132497681,0.33230319,601.86,600.96,1.02025718]
[1742132497876,0.33230319,601.86,600.97,2.21485115]
[1742132498078,0.33230319,601.86,600.98,1.02025718]
[1742132498280,0.33230319,601.86,600.99,1.02025718]
[1742132498584,0.33230319,601.86,600.97,1.19459397]
[1742132498585,0.33230319,601.86,601.0,1.19459397]
[1742132498782,0.33230319,601.86,600.77,1.281]
[1742132498983,0.33230319,601.86,600.78,1.69421269]
[1742132499284,0.33230319,601.86,600.79,2.5827324]
[1742132499482,0.33230319,601.86,600.8,1.38860957]
[1742132499678,0.33230319,601.86,600.81,2.5827324]
[1742132499884,0.33230319,601.86,600.82,1.38860957]
[1742132500079,0.33230319,601.86,600.83,1.38860957]
[1742132500281,0.33230319,601.86,600.84,2.5827324]
[1742132500483,0.33230319,601.86,600.85,1.38860957]
[1742132500680,0.33230319,601.86,600.86,2.5827324]
[1742132500885,0.33230319,601.86,600.87,1.38836883]
[1742132501081,0.33230319,601.86,600.88,1.38836883]
[1742132501282,0.33230319,601.86,600.89,1.3883138]
[1742132501489,0.33230319,601.86,600.9,1.3883138]
[1742132501686,0.33230319,601.86,600.91,1.01949443]
[1742132501886,0.33230319,601.86,600.92,1.01949443]
[1742132502086,0.33230319,601.86,600.93,1.01949443]
[1742132502685,0.33230319,601.86,600.94,1.19412283]
[1742132502884,0.33230319,601.86,600.95,1.01949443]
[1742132503485,0.33230319,601.86,600.96,1.19412283]
[1742132503683,0.33230319,601.86,600.97,1.02001023]
[1742132503988,0.33230319,601.86,600.77,1.281]
[1742132503989,0.33230319,601.86,600.98,1.19412283]
[1742132504389,0.33230319,601.86,600.78,1.19412283]
[1742132504589,0.33230319,601.86,600.79,1.38910174]
[1742132504789,0.33230319,601.86,600.78,1.19412283]
[1742132504790,0.33230319,601.86,600.8,1.38910174]
[1742132504990,0.33230319,601.86,600.81,1.69470848]
[1742132505184,0.33230319,601.86,600.82,0.67456142]
[1742132505388,0.33230319,601.86,600.83,0.67456142]
[1742132505584,0.33230319,601.86,600.84,1.69463227]
[1742132505787,0.33230319,601.86,600.85,1.69462655]
[1742132505989,0.33230319,601.86,600.86,2.88874938]
[1742132506290,0.33230319,601.86,600.87,1.69462655]
[1742132506486,0.33230319,601.86,600.88,1.38902553]
[1742132506690,0.33230319,601.86,600.89,1.38902553]
[1742132506891,0.33230319,601.86,600.9,1.38902553]
[1742132507097,0.33230319,601.86,600.91,1.38902553]
[1742132507390,0.33230319,601.86,600.92,1.38902553]
[1742132507591,0.33230319,601.86,600.93,1.38902553]
[1742132507791,0.33230319,601.86,600.94,2.21419368]
[1742132508090,0.33230319,601.86,600.95,2.21419368]
[1742132508291,0.703,601.85,600.96,1.02007085]
[1742132508490,1.03530871,601.85,600.96,1.02007085]
[1742132508686,1.03530871,601.85,600.95,1.19412283]
[1742132508994,0.33231423,601.84,600.78,1.19412283]
[1742132509188,0.33231423,601.84,600.79,1.39187762]
[1742132509385,0.33231423,601.84,600.8,1.39187762]
[1742132509585,0.33231423,601.84,600.81,2.58600045]
[1742132509789,0.33231423,601.84,600.82,1.02210969]
[1742132510385,0.33231423,601.84,600.83,1.19412283]
[1742132510585,0.33231423,601.84,600.84,1.02210969]
[1742132510790,0.33231423,601.84,600.85,1.19412283]
[1742132511586,0.33231423,601.84,600.86,1.02291732]
[1742132511792,0.33231423,601.84,600.78,1.19412283]
[1742132511992,0.33231423,601.84,600.79,1.39329215]
[1742132512195,0.33231423,601.84,600.8,1.39329215]
[1742132512388,0.33231423,601.84,600.81,1.39329215]
[1742132512586,0.33231423,601.84,600.8,1.19412283]
[1742132512587,0.33231423,601.84,600.82,1.02318867]
[1742132512792,0.33231423,601.84,600.83,1.02318867]
[1742132512992,0.33231423,601.84,600.84,1.02318867]
[1742132513190,0.33231423,601.84,600.85,1.02318867]
[1742132513392,0.33231423,601.84,600.84,1.19412283]
[1742132513595,0.33231423,601.84,600.85,1.02315734]
[1742132513894,0.33231423,601.84,600.78,1.19412283]
[1742132514093,0.33231423,601.84,600.79,1.39327136]
[1742132514294,0.33231423,601.84,600.8,2.58739419]
[1742132514594,0.33231423,601.84,600.81,1.02312186]
[1742132514794,0.33231423,601.84,600.81,2.21724469]
[1742132514995,0.33231423,601.84,600.82,1.02312186]
[1742132515195,0.33231423,601.84,600.83,1.0232202]
[1742132515392,0.33231423,601.84,600.84,1.02310561]
[1742132515591,0.33231423,601.84,600.85,1.02310561]
[1742132515788,0.33231423,601.84,600.86,1.02310561]
[1742132515993,0.33231423,601.84,600.82,1.19412283]
[1742132516290,0.33231423,601.84,600.87,1.19412283]
[1742132516490,0.33231423,601.84,600.88,1.39293385]
[1742132516689,0.33231423,601.84,600.89,1.39293385]
[1742132516893,0.33231423,601.84,600.9,1.39293385]
[1742132517092,0.33231423,601.84,600.91,2.58705668]
[1742132517293,0.33231423,601.84,600.92,1.39293385]
[1742132517494,0.33231423,601.84,600.93,1.39286939]
[1742132517689,0.33231423,601.84,600.94,2.21698136]
[1742132517889,0.33231423,601.84,600.95,1.02285853]
[1742132518095,0.33231423,601.84,600.94,1.19412283]
[1742132518289,0.33231423,601.84,600.95,1.02292863]
[1742132518489,0.33231423,601.84,600.96,2.21705146]
[1742132518689,0.33231423,601.84,600.97,1.02292863]
[1742132518893,0.33231423,601.84,600.98,2.21689756]
[1742132519191,0.33231423,601.84,600.99,1.02273275]
[1742132519395,0.33231423,601.84,600.98,1.19412283]
[1742132519588,0.33231423,601.84,601.0,1.19412283]
[1742132519991,0.33231423,601.84,600.78,1.19412283]
[1742132520295,0.33231423,601.84,600.79,1.69799317]
[1742132520594,0.33231423,601.84,600.8,1.39238703]
[1742132520789,0.33231423,601.84,600.81,1.39238703]
[1742132520995,0.33231423,601.84,600.8,1.19412283]
[1742132521197,0.33231423,601.84,600.81,1.39230609]
[1742132521397,0.33231423,601.84,600.77,1.281]
[1742132521398,0.33231423,601.84,600.82,2.58642892]
[1742132521591,0.33231423,601.84,600.83,1.39230609]
[1742132521797,0.33231423,601.84,600.84,1.39230609]
[1742132521992,0.33231423,601.84,600.85,1.39230609]
[1742132522192,0.33231423,601.84,600.86,1.39230609]
[1742132522497,0.33231423,601.84,600.87,1.39230609]
[1742132522796,0.33231423,601.84,600.88,1.39230609]
[1742132522998,0.33231423,601.84,600.89,1.39230609]
[1742132523193,0.33231423,601.84,600.9,1.39230609]
[1742132523391,0.33231423,601.84,600.91,1.39230609]
[1742132523596,0.33231423,601.84,600.92,2.58642892]
[1742132523896,0.33231423,601.84,600.93,1.39230609]
[1742132524097,0.33231423,601.84,600.94,1.02245455]
[1742132524296,0.33231423,601.84,600.95,2.21657738]
[1742132524496,0.33231423,601.84,600.96,1.02245455]
[1742132524798,0.703,601.83,600.97,1.19412283]
[1742132524997,0.703,601.83,600.98,1.02230595]
[1742132525194,0.703,601.83,600.99,1.02230595]
[1742132525402,0.703,601.83,601.0,1.02230595]
[1742132525997,0.703,601.83,601.01,1.19412283]
[1742132526595,0.703,601.83,600.78,1.19412283]
[1742132526795,0.703,601.83,600.79,1.69806686]
[1742132526999,0.703,601.83,600.8,1.69806686]
[1742132527202,0.703,601.83,600.81,0.67545883]
[1742132527502,0.703,601.83,600.82,0.30561169]
[1742132527698,0.703,601.83,600.83,1.02264487]
[1742132527903,0.703,601.83,600.84,0.30563096]
[1742132528205,0.703,601.83,600.78,1.19412283]
[1742132528401,0.703,601.83,600.79,0.30562861]
[1742132528805,0.703,601.83,600.8,1.39267422]
[1742132529097,0.703,601.83,600.81,0.67550514]
[1742132529305,0.703,601.83,600.82,0.30562861]
[1742132529500,0.703,601.83,600.83,0.36987653]
[1742132529697,0.703,601.83,600.84,1.6980529]
[1742132530003,0.703,601.83,600.85,2.8921812]
[1742132530199,0.703,601.83,600.86,1.39242429]
[1742132530402,0.703,601.83,600.87,2.58654712]
[1742132530595,0.703,601.83,600.88,1.02254776]
[1742132530800,0.703,601.83,600.88,2.21667059]
[1742132531001,0.703,601.83,600.89,1.02254776]
[1742132531404,0.703,601.83,600.9,1.02249215]
[1742132531604,0.703,601.83,600.91,1.02249215]
[1742132531903,0.703,601.83,600.92,1.02249215]
[1742132532104,0.703,601.83,600.93,1.02241853]
[1742132532306,0.703,601.83,600.77,1.281]
[1742132532499,0.703,601.83,600.78,1.69790144]
[1742132532699,0.703,601.83,600.79,2.89542614]
[1742132533004,0.703,601.83,600.8,1.69790144]
[1742132533201,0.703,601.83,600.81,2.89542614]
[1742132533404,0.703,601.83,600.82,1.69790144]
[1742132533601,0.703,601.83,600.83,2.89542614]
[1742132533804,0.703,601.83,600.84,1.69790144]
[1742132534000,0.703,601.83,600.85,1.69790144]
[1742132534297,0.703,601.83,600.86,2.89542614]
[1742132534497,0.703,601.83,600.87,1.39227694]
[1742132534806,0.703,601.83,600.88,1.39227694]
[1742132535006,0.703,601.83,600.89,2.21996964]
[1742132535309,0.33232527,601.82,600.9,1.02244494]
[1742132535500,0.33232527,601.82,600.89,1.1975247]
[1742132535905,0.33232527,601.82,600.78,1.1975247]
[1742132536106,0.33232527,601.82,600.79,1.69929025]
[1742132536307,0.33232527,601.82,600.8,1.69929025]
[1742132536507,0.33232527,601.82,600.81,1.39362932]
[1742132536711,0.33232527,601.82,600.82,1.39362932]
[1742132536907,0.33232527,601.82,600.83,1.39362932]
[1742132537207,0.33232527,601.82,600.84,2.59115402]
[1742132537406,0.33232527,601.82,600.85,1.39362932]
[1742132537608,0.33232527,601.82,600.86,1.39491524]
[1742132537807,0.33232527,601.82,600.87,1.39491524]
[1742132538008,0.33232527,601.82,600.88,1.39491524]
[1742132538302,0.33232527,601.82,600.89,1.39491524]
[1742132538506,0.33232527,601.82,600.9,1.39491524]
[1742132538703,0.33232527,601.82,600.91,1.02436139]
[1742132538908,0.33232527,601.82,600.9,1.1975247]
[1742132539304,0.33232527,601.82,600.78,1.1975247]
[1742132539705,0.33232527,601.82,600.79,1.39628546]
[1742132539910,0.33232527,601.82,600.8,1.39628546]
[1742132540108,0.33232527,601.82,600.81,1.39628546]
[1742132540308,0.33232527,601.82,600.82,1.39628546]
[1742132540509,0.33232527,601.82,600.83,2.59381016]
[1742132540709,0.33232527,601.82,600.84,1.39628546]
[1742132540909,0.33232527,601.82,600.85,1.02535325]
[1742132541204,0.33232527,601.82,600.86,1.39676251]
[1742132541408,0.33232527,601.82,600.87,2.22287795]
[1742132541710,0.33232527,601.82,600.88,1.02535325]
[1742132542107,0.33232527,601.82,600.89,1.1975247]
[1742132542305,0.33232527,601.82,600.9,1.02535325]
[1742132542512,0.33232527,601.82,600.91,1.1975247]
[1742132546512,0.33232527,601.82,600.9,1.389]
[1742132558129,1.03532527,601.82,600.9,1.389]
[1742132573943,0.28964639,601.81,600.9,1.389]
[1742132574143,0.33234184,601.79,600.9,1.389]
[1742132575044,0.2896476,601.78,600.9,1.389]
[1742132575244,0.33235841,601.76,600.9,1.389]
[1742132576146,2.85568281,601.76,600.9,1.389]
[1742132577547,0.703,601.75,600.9,1.389]
[1742132577748,2.5233244,601.64,600.9,1.389]
[1742132577946,0.33243023,601.63,600.9,1.389]
[1742132584051,2.5233244,601.58,600.9,1.389]
[1742132584248,0.33246338,601.57,600.9,1.389]
[1742132595664,2.5233244,601.56,600.9,1.389]
[1742132595857,0.33247444,601.55,600.9,1.389]
[1742132597665,2.5233244,601.45,600.9,1.389]
[1742132597864,0.33253524,601.44,600.9,1.389]
[1742132598060,0.33253524,601.44,599.89,0.28964518]
[1742132598262,0.33253524,601.44,599.9,1.6985877]
[1742132598559,0.33253524,601.44,599.91,1.6985877]
[1742132598762,0.33253524,601.44,599.92,1.6985877]
[1742132598971,0.33253524,601.44,599.93,1.6985877]
[1742132599164,0.33253524,601.44,599.94,1.69858541]
[1742132599368,0.33253524,601.44,599.95,2.89625351]
[1742132599562,0.33253524,601.44,599.96,1.69858541]
[1742132599870,0.33253524,601.44,599.97,1.69886417]
[1742132600069,0.33253524,601.44,599.98,1.39290008]
[1742132600268,0.33253524,601.44,599.99,1.69886417]
[1742132600464,0.33253524,601.44,600.0,2.89653227]
[1742132600669,0.33253524,601.44,600.01,1.69886417]
[1742132600864,0.33253524,601.44,600.02,1.69886417]
[1742132601065,0.33253524,601.44,600.03,1.69886417]
[1742132601268,0.33253524,601.44,600.02,1.1976681]
[1742132601269,0.33253524,601.44,600.04,1.69886417]
[1742132601464,0.33253524,601.44,600.05,1.39290008]
[1742132601668,0.33253524,601.44,600.06,1.39290008]
[1742132601867,0.33253524,601.44,600.07,1.39346611]
[1742132602070,0.33253524,601.44,600.08,1.02340548]
[1742132602368,0.33253524,601.44,600.09,1.02340548]
[1742132602570,0.33253524,601.44,600.1,1.02340548]
[1742132602870,0.33253524,601.44,600.06,1.1976681]
[1742132603170,0.33253524,601.44,600.1,1.1976681]
[1742132603571,0.33253524,601.44,600.08,1.1976681]
[1742132603770,0.33253524,601.44,600.09,1.02390106]
[1742132603965,0.33253524,601.44,600.08,1.1976681]
[1742132604170,0.33253524,601.44,600.02,1.159]
[1742132604370,0.33253524,601.44,600.03,1.39488454]
[1742132604570,0.33253524,601.44,600.04,1.39488454]
[1742132604770,0.33253524,601.44,600.05,1.39488454]
[1742132604971,0.33253524,601.44,600.06,1.02422628]
[1742132605171,0.33253524,601.44,600.07,2.22378873]
[1742132605372,0.33253524,601.44,600.08,1.02422628]
[1742132605570,0.33253524,601.44,600.07,1.19956245]
[1742132605771,0.33253524,601.44,600.08,1.02449982]
[1742132606070,0.33253524,601.44,600.08,1.19956245]
[1742132606271,0.33253524,601.44,600.09,1.02487897]
[1742132606468,1.03553524,601.44,600.1,1.02487897]
[1742132606668,1.03553524,601.44,600.11,1.02487897]
[1742132606867,1.03553524,601.44,600.12,1.02487897]
[1742132607071,1.03553524,601.44,600.1,1.19956245]
[1742132607271,1.03553524,601.44,600.13,1.19956245]
[1742132608271,1.03553524,601.44,600.02,1.159]
[1742132608272,1.03553524,601.44,600.03,1.19956245]
[1742132608470,1.03553524,601.44,600.04,1.39682025]
[1742132608772,1.03553524,601.44,600.05,1.39682025]
[1742132608968,1.03553524,601.44,600.06,2.22516773]
[1742132609175,1.03553524,601.44,600.07,1.02560528]
[1742132609673,1.03553524,601.44,600.08,1.19956245]
[1742132610078,2.5233244,601.41,600.08,1.19956245]
[1742132610277,0.33256289,601.39,600.03,1.19956245]
[1742132611168,0.33256289,601.39,600.02,1.159]
[1742132616773,0.2899094,601.38,600.02,1.159]
[1742132617379,0.33257948,601.36,600.02,1.159]
[1742132619983,0.28994564,601.35,600.02,1.159]
[1742132620285,0.33259607,601.33,600.02,1.159]
[1742132625791,0.28991544,601.32,600.02,1.159]
[1742132627292,0.33261267,601.3,600.02,1.159]
[1742132632090,0.703,601.29,600.02,1.159]
[1742132633298,0.33262926,601.27,600.02,1.159]
[1742132644404,2.5233244,601.02,600.02,1.159]
[1742132644802,0.3327787,601.0,600.02,1.159]
[1742132648706,2.5233244,600.96,600.02,1.159]
[1742132648903,0.33281192,600.94,600.02,1.159]
[1742132651311,2.5233244,600.91,600.02,1.159]
[1742132651511,0.33283962,600.89,600.02,1.159]
[1742132652813,2.5233244,600.87,600.02,1.159]
[1742132653009,0.33286177,600.85,600.02,1.159]
[1742132655617,2.5233244,600.72,600.02,1.159]
[1742132655816,0.33293935,600.71,600.02,1.159]